Cogmind - Beta 13 @@@ ROGUE MODE // 2024.04.12 @ 19:27:16 Player: szymekc Result: Destroyed by G-47 Trooper with Particle Gun Performance ------------- Evolutions (2) 1000 Regions Visited (4) 800 Robots Destroyed (49) 245 Value Destroyed (1840) 1840 Prototype IDs (10) 200 Alien Tech Used (0) 0 Bonus (200) 200 TOTAL SCORE: 4285 Bonus ------- Entered Garrisons 200 Cogmind --------- Core Integrity 0/550 Matter 248/300 Energy 81/100 System Corruption 2% Temperature Cool (9) Movement Core (50) Location -8/Garrison Parts ------- > --- POWER (1) -------- (None) > --- PROPULSION (4) --- (None) > --- UTILITY (4) ------ Hacking Suite Makeshift Hacking Suite > --- WEAPON (2) ------- (None) > --- INVENTORY (5) ---- Light Treads Fusion Bomb Trap Fusion Bomb Trap Fusion Bomb Trap Scrap Shield Fragment (47) Peak State ------------ > --- POWER ------------ Makeshift Power Source > --- PROPULSION ------- Spiked Treads Spiked Treads Makeshift Leg Makeshift Leg > --- UTILITY ---------- High-capacity Storage Unit Gun Armor Scrap Shield > --- WEAPON ----------- Subdweller Beam Cannon Subdweller Beam Cannon Subdweller Beam Cannon > --- INVENTORY -------- Ion Engine Light Nuclear Core Improved Heat Sink Makeshift Light Armor Plating Makeshift Light Armor Plating Hacking Suite Makeshift Hacking Suite Makeshift System Shield Scrap Shield Fragment Scrap Shield Fragment Scrap Shield Fragment Scrap Shield Fragment Scrap Shield Fragment Scrap Shield Fragment Scrap Shield Fragment [Rating: 40] Favorites ----------- Power Ion Engine Engine Ion Engine Power Core Light Nuclear Core Propulsion Light Treads Treads Light Treads Leg Makeshift Leg Wheel Subdweller Monowheel Utility Scrap Shield Device Heat Sink Storage High-capacity Storage Unit Processor Signal Interpreter Hackware Hacking Suite Protection Scrap Shield Weapon Subdweller Beam Cannon Energy Gun Medium Laser Energy Cannon Subdweller Beam Cannon Ballistic Gun Light Assault Rifle Ballistic Cannon Battle Cannon Launcher Subdweller Shrapnel Launcher Build | -11 -10 -10 -8 -8 ------- Run | Yrd Mat Sub Mat Gar Slots Evolved 4 | . . . 4 . Power . | . . . . . Propulsion 2 | . . . 2 . Utility 2 | . . . 2 . Weapon . | . . . . . Parts Attached 62 | 2 9 30 19 2 Power 4 | . 1 1 2 . Engine 3 | . 1 1 1 . Core 1 | . . . 1 . Reactor . | . . . . . Propulsion 21 | 2 . 12 7 . Treads 10 | 2 . 4 4 . Leg 5 | . . 5 . . Wheel 6 | . . 3 3 . Hover . | . . . . . Flight . | . . . . . Utility 20 | . 3 7 8 2 Device 6 | . 1 2 3 . Storage 2 | . 1 1 . . Processor 1 | . . 1 . . Hackware 2 | . . . . 2 Protection 9 | . 1 3 5 . Artifact . | . . . . . Weapon 17 | . 5 10 2 . Energy Gun 2 | . 2 . . . Energy Cannon 9 | . 2 6 1 . Ballistic Gun 1 | . . . 1 . Ballistic Cannon 1 | . . 1 . . Launcher 4 | . 1 3 . . Special Weapon . | . . . . . Impact Weapon . | . . . . . Slashing Weapon . | . . . . . Piercing Weapon . | . . . . . Special Melee Weapon . | . . . . . Unidentified Prototypes . | . . . . . Parts Lost 10 | . . . 6 4 Power 2 | . . . 2 . Propulsion 6 | . . . 3 3 Utility 1 | . . . 1 . Weapon 1 | . . . . 1 Highest Loss Streak 6 | . . . 6 4 To Critical Strikes . | . . . . . Average Slot Usage (%) 88 | . 98 88 79 80 Engine 13 | . 14 14 6 7 Treads 18 | . 28 16 13 15 Leg 4 | . . 6 4 . Wheel 5 | . . 5 10 15 Device 1 | . 7 . 2 . Storage 5 | . 14 2 7 7 Protection 12 | . 5 13 14 24 Energy Gun 1 | . 9 . . . Energy Cannon 19 | . 6 26 14 . Ballistic Gun 2 | . 10 . 1 7 Naked Turns . | . . . . . Heaviest Build 90 | 13 34 65 90 61 Greatest Support 41 | 40 40 40 41 40 Greatest Overweight (x) 20 | . . 1 5 20 Average Overweight (x) . | . . . 1 1 Largest Inventory Capacity 20 | 8 15 20 20 20 Average Capacity 10 | 8 13 7 20 19 Most Carried 20 | 6 15 20 18 20 Average Carried 9 | 6 12 6 13 15 Final Capacity 20 | 8 15 20 20 5 Final Carried 20 | 6 15 20 10 5 Class Distribution -------------------- 45% | Mutant 40% | Subdweller-Mutant 9% | Scavenger-Mutant 3% | Subdweller-Tank Dominant Class ---------------- Mutant | -10/Materials Subdweller-Mutant | -10/Subcaves Subdweller-Tank | -8/Materials Scavenger-Mutant | -8/Garrison Resources | -11 -10 -10 -8 -8 ----------- Run | Yrd Mat Sub Mat Gar Matter Collected 1067 | 197 153 416 237 64 Remotely . | . . . . . Salvage Created 2127 | . 456 894 642 135 Parts 122 | . 39 52 25 6 Haulers Intercepted 1 | . 1 . . . Recyclers Shooed . | . . . . . Parts Field Recycled . | . . . . . Retrieved Matter . | . . . . . Parts Self-Destructed 16 | . . 16 . . Prevented . | . . . . . Kills | -11 -10 -10 -8 -8 ------- Run | Yrd Mat Sub Mat Gar Combat Hostiles Destroyed 39 | . 12 17 8 2 Guns 12 | . 9 . 1 2 Cannons 21 | . . 14 7 . AOE 4 | . 3 1 . . Classes Destroyed 15 | . 5 5 5 . Worker 2 | . . . 2 . Builder 1 | . . . 1 . Hauler 1 | . 1 . . . Recycler 2 | . . . 2 . Operator 1 | . 1 . . . Turret 2 | . . 2 . . Watcher 1 | . 1 . . . Swarmer 4 | . 3 . . 1 Grunt 16 | . 9 . 6 1 Brawler 1 | . . . 1 . Sentry 1 | . . 1 . . Hunter 1 | . . . 1 . Artisan 2 | . . 2 . . Cobbler 1 | . . 1 . . Subdweller 16 | . . 16 . . Best Kill Streak 3 | . 3 2 3 1 Combat Bots Only 3 | . 3 2 2 1 Max Kills in Single Turn 3 | . 3 2 1 1 Gunslinging . | . . . . . Exploded 3 | . 3 1 . . Melee . | . . . . . Uniques/NPCs Destroyed . | . . . . . Combat | -11 -10 -10 -8 -8 -------- Run | Yrd Mat Sub Mat Gar Hostile Shots Fired 360 | . 34 78 178 70 Missed 95 | . 5 22 50 18 Damage Taken 4071 | . 395 1015 1610 1051 Core 737 | . 79 98 210 350 Absorbed by Shields 5 | . . . . 5 Core Remaining (%) 64 | 100 . 29 . . Volleys Fired 211 | . 29 110 47 25 Largest 3 | . 2 2 3 1 Hottest 240 | . 85 160 240 28 Shots Fired 341 | . 58 191 67 25 Gun 97 | . 57 . 15 25 Cannon 241 | . . 189 52 . Launcher 3 | . 1 2 . . Special . | . . . . . Kinetic 81 | . 29 12 15 25 Thermal 259 | . 28 179 52 . Explosive 1 | . 1 . . . Electromagnetic . | . . . . . Robot Hit Streak 25 | . 10 25 9 11 Robot Miss Streak 5 | . 2 5 2 3 Penetration Max 1 | . . . 1 . Secondary Targets . | . . . . . Shots Hit Robots 180 | . 38 83 43 16 Core Hits 78 | . 26 28 17 7 Critical Kills 2 | . . 2 . . Critical Parts Destroyed 2 | . . . 2 . Critical Strikes 7 | . 3 2 2 . Burn 3 | . 3 . . . Meltdown 2 | . . 2 . . Destroy 2 | . . . 2 . Melee Attacks . | . . . . . Impact . | . . . . . Slashing . | . . . . . Piercing . | . . . . . Sneak Attacks . | . . . . . Combat Hostiles . | . . . . . Follow-up Attacks . | . . . . . Damage Inflicted 4254 | . 573 2066 1271 344 Guns 1025 | . 436 . 264 325 Cannons 2853 | . . 1885 968 . Explosions 318 | . 137 181 . . Melee . | . . . . . Ramming 58 | . . . 39 19 Kinetic 1043 | . 128 326 264 325 Thermal 3016 | . 308 1740 968 . Explosive 137 | . 137 . . . Electromagnetic . | . . . . . Impact . | . . . . . Slashing . | . . . . . Piercing . | . . . . . Highest Corruption 2 | . . . 2 2 Average Corruption 2 | . . . 2 2 Corruption Purged . | . . . . . Corruption Blocked . | . . . . . Effects 7 | . . . . 7 Message Errors 1 | . . . . 1 Matter Fused 3 | . . . . 3 Heat Flow Errors 1 | . . . . 1 Energy Discharges 1 | . . . . 1 Data Loss (minor) 1 | . . . . 1 Overload Shots . | . . . . . Overflow Damage 30 | . . 20 10 . Projectiles 30 | . . 20 10 . Explosions . | . . . . . Melee . | . . . . . Knockbacks . | . . . . . Impact . | . . . . . Kinetic . | . . . . . Secondary . | . . . . . Self-Inflicted Damage 50 | . 31 . 19 . Shots 1 | . 1 . . . Rammed 7 | . . . 2 5 Targets Rammed 8 | . . . 2 6 Kicked . | . . . . . Crushed 1 | . . . . 1 Highest Temperature 396 | . 233 312 396 110 Average Temperature 86 | . 53 69 143 23 Received Heat Transfer 1515 | . 228 264 603 420 Effects 1 | . . . 1 . Short Circuit 1 | . . . 1 . Siege Activations . | . . . . . Robots Corrupted . | . . . . . Combat Hostiles . | . . . . . Parts Fried . | . . . . . Impact Corruptions . | . . . . . Robots Melted 2 | . . 2 . . Combat Hostiles 2 | . . 2 . . Parts Melted 8 | . 3 5 . . Heat Transferred 4884 | . 1036 2553 1295 . Parts Sabotaged . | . . . . . Parts Stolen . | . . . . . Parts Stripped . | . . . . . Power Chain Reactions . | . . . . . Alert | -11 -10 -10 -8 -8 ------- Run | Yrd Mat Sub Mat Gar Peak Influence 390 | . 281 . 353 390 Initial 115 | . . . 72 115 Average 174 | . 150 . 182 238 Maximum Alert Level 1 | . 1 . 1 1 Low Security (%) 67 | 100 76 . 68 41 Level 1 32 | . 23 . 31 58 Level 2 . | . . . . . Level 3 . | . . . . . Level 4 . | . . . . . Level 5 . | . . . . . High Security . | . . . . . Max Security . | . . . . . Squads Dispatched 5 | . 3 . 2 . Investigation 2 | . 2 . . . Extermination . | . . . . . Reinforcement 2 | . 1 . 1 . Assault . | . . . . . Garrison 1 | . . . 1 . Intercept . | . . . . . Searches Triggered . | . . . . . Construction Impeded . | . . . . . Haulers Reinforced . | . . . . . Active Scanning Responses . | . . . . . Cargo Convoy Interrupts . | . . . . . Stealth | -11 -10 -10 -8 -8 --------- Run | Yrd Mat Sub Mat Gar Distress Signals 2 | . 2 . . . Communications Jammed . | . . . . . Distress Signals . | . . . . . Times Spotted 87 | . 20 30 22 15 Peak Tracking Total 9 | . 4 2 9 7 Tactical Retreats 8 | . 1 3 2 2 Traps | -11 -10 -10 -8 -8 ------- Run | Yrd Mat Sub Mat Gar Traps Triggered 6 | . . 2 . 4 Indirectly . | . . . . . Trap Hack Attempts . | . . . . . Triggered . | . . . . . Disarmed . | . . . . . Reprogrammed . | . . . . . Reused 9 | . . 2 . 7 Traps Extracted . | . . . . . Installed 12 | . . 2 . 10 Triggered 8 | . . 1 . 7 Most Traps Carried 7 | . . 1 . 7 Machines | -11 -10 -10 -8 -8 ---------- Run | Yrd Mat Sub Mat Gar Machines Disabled 10 | . 1 4 1 4 Max in Single Turn 3 | . 1 3 1 1 Garrison Relay 1 | . . . . 1 Machines Repaired . | . . . . . Machines Dismantled . | . . . . . Machines Sabotaged . | . . . . . Overloaded Fab Kills . | . . . . . Hacking | -11 -10 -10 -8 -8 --------- Run | Yrd Mat Sub Mat Gar Machines Accessed 13 | . 8 2 3 . Terminals 8 | . 6 . 2 . Fabricators . | . . . . . Repair Stations . | . . . . . Recycling Units 2 | . 2 . . . Scanalyzers . | . . . . . Garrison Access 1 | . . . 1 . Total Hacks 39 | . 22 11 6 . Successful 22 | . 9 11 2 . Failed 17 | . 13 . 4 . Catastrophic 1 | . 1 . . . Database Lockouts . | . . . . . Manual 11 | . 7 1 3 . Terminals 22 | . 17 . 5 . Fabricators . | . . . . . Repair Stations . | . . . . . Recycling Units 5 | . 5 . . . Scanalyzers . | . . . . . Garrison Access 1 | . . . 1 . Terminal Hacks 18 | . 7 11 . . Record 10 | . . 10 . . Robot Analysis 2 | . 2 . . . Emergency Access Points 1 | . 1 . . . Locate Traps 3 | . 3 . . . Zone Layout 1 | . 1 . . . Derelict Proto ID Bank 1 | . . 1 . . Fabricator Hacks . | . . . . . Repair Station Hacks . | . . . . . Recycling Unit Hacks . | . . . . . Scanalyzer . | . . . . . Garrison Access Hacks 1 | . . . 1 . Unlock Access 1 | . . . 1 . Unauthorized Hacks 3 | . 2 . 1 . Terminals 1 | . . . 1 . Disrupt 1 | . . . 1 . Fabricators . | . . . . . Repair Stations . | . . . . . Recycling Units 2 | . 2 . . . Tunnel 2 | . 2 . . . Scanalyzers . | . . . . . Garrison Access . | . . . . . Data Cores Recovered . | . . . . . Used . | . . . . . Hacking Detections 10 | . 8 . 2 . Full Trace Events . | . . . . . Feedback Events . | . . . . . Feedback Blocked . | . . . . . Robot Schematics Acquired . | . . . . . Robots Built . | . . . . . Authchips . | . . . . . Time . | . . . . . Total Robot Build Rating . | . . . . . Part Schematics Acquired . | . . . . . Parts Built . | . . . . . Authchips . | . . . . . Time . | . . . . . Total Part Build Rating . | . . . . . Parts Repaired . | . . . . . Time . | . . . . . Parts Recycled . | . . . . . Recycled Matter . | . . . . . Retrieved Matter . | . . . . . Retrieved Components . | . . . . . Parts Scanalyzed . | . . . . . Part Schematics Acquired . | . . . . . Parts Damaged . | . . . . . Bothacking | -11 -10 -10 -8 -8 ------------ Run | Yrd Mat Sub Mat Gar Used RIF Installer . | . . . . . Robots Hacked . | . . . . . Non-combat . | . . . . . Combat . | . . . . . Robot Hacks Applied . | . . . . . Relay Couplers Released 5 | . . . . 5 Machine Destruction 5 | . . . . 5 Fabnet Peak Effective % . | . . . . . Robots Rewired . | . . . . . Allies Hacked . | . . . . . Hacks Repelled . | . . . . . Allies | -11 -10 -10 -8 -8 -------- Run | Yrd Mat Sub Mat Gar Total Allies . | . . . . . Largest Group . | . . . . . Highest-Rated Group . | . . . . . Highest-Rated Ally . | . . . . . Total Orders . | . . . . . Ally Attacks . | . . . . . Total Damage . | . . . . . Kills . | . . . . . Allies Corrupted . | . . . . . Allies Melted . | . . . . . Intel | -11 -10 -10 -8 -8 ------- Run | Yrd Mat Sub Mat Gar Robot Analysis Total 2 | . 2 . . . Derelict Logs Recovered 1 | . . 1 . . Drone Launches . | . . . . . Drone Recoveries . | . . . . . Exploration | -11 -10 -10 -8 -8 ------------- Run | Yrd Mat Sub Mat Gar Turns Passed 6449 | 19 1314 4205 422 489 Spaces Moved 3560 | 11 611 2483 156 299 Core 5 | . . . . 5 Treads 1371 | 11 611 748 . 1 Legs 614 | . . 582 32 . Wheels 1570 | . . 1153 124 293 Hover . | . . . . . Flight . | . . . . . Fastest Speed 50 | 160 160 120 115 50 Average Speed 148 | 160 160 149 157 117 Slowest Speed 1050 | 160 160 260 280 1050 Overloaded Moves . | . . . . . Propulsion Burnouts . | . . . . . Robots Hopped . | . . . . . Cave-ins Triggered . | . . . . . Exploration Rate (%) 46 | 2 91 97 17 26 Regions Visited 4 Branch Regions 1 Pre-discovered Areas 3 | . 2 1 . . Known Exits Taken 2 | . . 1 1 . Unknown Exits Taken 2 | 1 1 . . . Scrap Searched 11 | . . 11 . . Spaces Dug 20 | . 7 13 . . Terrain Destroyed 76 | . 7 54 15 . Melee . | . . . . . Projectile 45 | . . 30 15 . AOE 31 | . 7 24 . . Terrain Rammed . | . . . . . Walls Destroyed . | . . . . . Machines Disabled . | . . . . . Actions | -11 -10 -10 -8 -8 --------- Run | Yrd Mat Sub Mat Gar Total 4384 | 12 901 2798 267 406 Wait 332 | . 218 90 23 1 Move 3556 | 10 610 2482 155 299 Hop . | . . . . . Pick Up 75 | . 20 35 3 17 Fast Attach 23 | . 3 10 8 2 Attach 15 | . 1 4 10 . Detach 6 | . . 2 4 . Swap 24 | 2 5 16 1 . Drop 68 | . 15 32 10 11 Fire 211 | . 29 110 47 25 Melee . | . . . . . Ram 2 | . . . 2 . Kick . | . . . . . Crush 6 | . . . . 6 Escape Stasis 32 | . . . . 32 Rewire 3 | . . . . 3 Trap 12 | . . 2 . 10 Miscellaneous 19 | . . 15 4 . Route ------- -11/Scrapyard -10/Materials (discovered 5 exits: [*Mat x3] / [*Min] / *Sub) -10/Subcaves (discovered 3 exits: *Mat x2 / [*Rec]) -8/Materials -8/Garrison History --------- Turn | Location | Event 4 | -11/Scrapyard | Discovered new exit (range 3) 20 | -11/Scrapyard | Entered Materials 318 | -10/Materials | Build established: Mutant 364 | -10/Materials | Discovered new exit (range 11) 498 | -10/Materials | Discovered new exit (range 15) 812 | -10/Materials | Discovered new exit (range 7) 1050 | -10/Materials | Discovered new exit (range 10) 1319 | -10/Materials | Discovered new exit (range 4) 1334 | -10/Materials | Entered Subcaves 1430 | -10/Subcaves | Shifting Twisted Machinery released Spk. Treads 1647 | -10/Subcaves | Shifting Twisted Machinery released Sub. Power Source 1700 | -10/Subcaves | Learned location of Zion (-7) 1700 | -10/Subcaves | Met a Zionite searching for "candidates" 1710 | -10/Subcaves | A swath of the cavern ceiling suddenly collapsed 2180 | -10/Subcaves | A swath of the cavern ceiling suddenly collapsed 2371 | -10/Subcaves | Discovered new exit (range 11) 2446 | -10/Subcaves | Shifting Twisted Machinery released Sub. Beam Cannon 2533 | -10/Subcaves | Shifting Twisted Machinery released Mak. Leg 2579 | -10/Subcaves | Ambushed by angry Subdweller bent on revenge 2708 | -10/Subcaves | Build established: Subdweller-Mutant 2804 | -10/Subcaves | Discovered new exit (range 12) 2973 | -10/Subcaves | Shifting Twisted Machinery released Mak. Light Armor Plating 2986 | -10/Subcaves | Shifting Twisted Machinery released Sub. Power Source 3068 | -10/Subcaves | Visited Clippyterm 3318 | -10/Subcaves | Discovered new exit (range 8) 4500 | -10/Subcaves | Learned Materials stockpile data 4907 | -10/Subcaves | Visited 4L-MR0's lab 4926 | -10/Subcaves | Found Gun Armor 5220 | -10/Subcaves | Build established: Mutant 5263 | -10/Subcaves | Core integrity fell below 50% 5539 | -10/Subcaves | Identified exit to Materials 5539 | -10/Subcaves | Entered Materials 5539 | -8/Materials | Evolved 4 slots: Propulsion x2, Utility x2 5544 | -8/Materials | Attached Gun Armor, gained temporary slots: Weapon x2 5582 | -8/Materials | Garrison activated, responded to threat 5696 | -8/Materials | Identified exit to Garrison 5961 | -8/Materials | Entered Garrison 5963 | -8/Garrison | Lost 6 parts (2p3n1u) 6112 | -8/Garrison | Build established: Scavenger-Mutant 6157 | -8/Garrison | Triggered checkpoint 6162 | -8/Garrison | Garrison Relay disabled 6243 | -8/Garrison | Triggered checkpoint 6429 | -8/Garrison | Core integrity fell below 50% 6441 | -8/Garrison | Core integrity fell below 20% 6445 | -8/Garrison | Released all parts (4) 6450 | -8/Garrison | Destroyed by G-47 Trooper with Particle Gun Last Messages --------------- 06427_ Lgt. Treads destroyed. 06427_ Dropped Fusion Bomb Trap. 06428_ Installed Fusion Bomb Trap. 06429_ The unstable cave ceiling collapses. 06431_ Critical hit (Burn: +37). 06432_ Com. Wheel destroyed. 06432_ Dropped Fusion Bomb Trap. 06432_ Installed Fusion Bomb Trap. 06434_ L-31 Rogue triggered Fusion Bomb Trap. 06434_ An explosion rips through the floor. 06434_ Gauss Rifle destroyed. 06435_ Critical hit (Burn: +37). 06444_ Dropped Hcp. Storage Unit. 06444_ Dropped Lgt. Treads. 06445_ Released Mak. Light Armor Plating. 06445_ Released Ion Engine. 06445_ Released Gun Armor. 06445_ Temporary Weapon slot lost. 06445_ Acquired Hacking Suite. 06447_ Acquired Mak. Hacking Suite. Map ----- +----------------------------------------------------+ | | | | | | | | | | | | | | | | | ?????????????????????????????????????????????????? | | ?????????????????????????????????????????????????? | | ?????????????????????????????????????????????????? | | ?????????????????????????????????????????????????? | | ?????????????????????????????????????????????????? | | ?????????????????????###########?????????????????? | | ?????????????????????" " " " #?????????????????? | | ?????????????????????" " " " #?????????????????? | | ????????????????????#""" "" " ##????????????????? | | ????????????????????# #################? | | ????????????????????#""" # ! #? | | ????????????????????#& %g #? | | ????????????????????# ## #? | | ????????????????????# ## ############? | | ????????????????????# ! ## #???????????? | | ????????????????????#""&&=gg ### #???????????? | | ?????????????????????" l!! " #?# #???????????? | | ?????????????????????"!&&@==*" #?# #???????????? | | ?????????????????????###########?# #???????????? | | ?????????????????????????????????# #???????????? | | ?????????????????????????????????# #???????????? | | ?????????????????????#####???????# #???????????? | | ?????????????????????? #???????# #???????????? | | ?????????????????????? #???????# #???????????? | | ??????????????????????# ###???### ##??????????? | | ??????????????????????# #??## ##?????????? | | ??????????????????????# #??# #?????????? | | ???????????????????#### ??## #?????????? | | ???????????????????# # ##### ## #?????????? | | ???????????????????# # # # #?????????? | | ???????????????????# ## # # # ####??????? | | ????????????######## # # ###????? | | ????????????# ###???? | | ????????????# #???? | | ????????????# # ##???? | | ????????????# ^#+#### # ## # #### %## #???? | | ????????????# #???######## # ##??# ####???? | | ????????????# #??????????#######???### =#"#????? | | ????????????# #????????????????????# !!"#????? | | ????????????# #????????????????????# ! #????? | | ????????????# #????????????????????# !"#????? | | ????????????# ^ #????????????????????### !#"#????? | +----------------------------------------------------+ Best States ------------- Heat Dissipation 59 Energy Generation 15 Energy Capacity 250 Matter Stores 300 Matter Capacity 300 Sight Range 16 Robot Scan Range 14 Terrain Scan Density 10 Additional Mass Support 9 Armor Coverage 860 Evasion (%) 55 Recoil Reduction 2 Offensive Hacking 21 Item Schematics ----------------- None Robot Schematics ------------------ None Fabricated ------------ Nothing Alien Tech Used ----------------- None Achievements -------------- None Challenges ------------ None Game ------ Seed UtilityCoordinationPit Manual? 0 Play Time 00:57:15 Cumulative 131.3 hours Start 2024.04.12 @ 18:25:53 End 2024.04.12 @ 19:27:16 Sessions 1 Manual Loads 0 Difficulty Rogue Special Mode None Game No. 63 Rogue 61 Adventurer 2 Explorer 0 Win Type - Total 3 Types 3/0/0/0/0/0/0/0/0 Lore% 56 Gallery% 69 Achievement% 54 Wizard Run 0 Options --------- Layout 2 ASCII 0 Keyboard 0 Movement Numpad Keybinds 0 Fullscreen 2 Font 32/SmallcapsGlow Map View 50x44 Zoom Use 0% Tactical HUD 1 Map Filters NONE Filters NONE Steam 1 RUN: 81bed2d7-6967-41bd-b364-5cec114759dd